[Event "Titled Tuesday Blitz July 25 Late 2023"]
[White "Kramnik, Vladimir"]
[Black "Cesar Maestre, Bernardo"]
[WhiteFideId "4101588"]
[BlackFideId "24542547"]
[WhiteElo "3003"]
[BlackElo "2490"]
[Result "1/2-1/2"]
[Round "1"]
[TimeControl "180+2"]
[Date "2023.07.25"]
[WhiteClock "0:00:02"]
[BlackClock "0:00:02"]
[Board "20"]

1. c4 {[%clk 0:03:00]}  e6 {[%clk 0:02:57]} 2. Nc3 {[%clk 0:03:00]}  d5 {[%clk 0:02:56]} 3. d4 {[%clk 0:03:01]}  Nf6 {[%clk 0:02:51]} 4. cxd5 {[%clk 0:03:00]}  Nxd5 {[%clk 0:02:50]} 5. e4 {[%clk 0:03:00]}  Nxc3 {[%clk 0:02:50]} 6. bxc3 {[%clk 0:03:00]}  c5 {[%clk 0:02:50]} 7. Rb1 {[%clk 0:02:59]}  Be7 {[%clk 0:02:47]} 8. Bc4 {[%clk 0:02:53]}  O-O {[%clk 0:02:45]} 9. Nf3 {[%clk 0:02:51]}  Nc6 {[%clk 0:02:43]} 10. O-O {[%clk 0:02:50]}  b6 {[%clk 0:02:42]} 11. d5 {[%clk 0:02:41]}  Na5 {[%clk 0:02:40]} 12. Bd3 {[%clk 0:02:27]}  c4 {[%clk 0:02:28]} 13. Bc2 {[%clk 0:02:26]}  exd5 {[%clk 0:02:16]} 14. exd5 {[%clk 0:02:26]}  Bg4 {[%clk 0:02:06]} 15. h3 {[%clk 0:02:19]}  Bh5 {[%clk 0:02:04]} 16. Re1 {[%clk 0:02:07]}  Bf6 {[%clk 0:01:43]} 17. Ba3 {[%clk 0:02:04]}  Re8 {[%clk 0:01:40]} 18. Rxe8+ {[%clk 0:02:00]}  Qxe8 {[%clk 0:01:41]} 19. g4 {[%clk 0:01:58]}  Bg6 {[%clk 0:01:41]} 20. Bxg6 {[%clk 0:01:44]}  hxg6 {[%clk 0:01:42]} 21. Qc2 {[%clk 0:01:44]}  Rd8 {[%clk 0:01:39]} 22. Re1 {[%clk 0:01:42]}  Qb5 {[%clk 0:01:35]} 23. d6 {[%clk 0:01:27]}  Nb7 {[%clk 0:01:31]} 24. Qe4 {[%clk 0:01:15]}  Nxd6 {[%clk 0:01:16]} 25. Qf4 {[%clk 0:01:14]}  g5 {[%clk 0:01:11]} 26. Qg3 {[%clk 0:01:05]}  Qd5 {[%clk 0:00:58]} 27. Bxd6 {[%clk 0:00:52]}  Rxd6 {[%clk 0:00:48]} 28. Re8+ {[%clk 0:00:39]}  Kh7 {[%clk 0:00:48]} 29. h4 {[%clk 0:00:39]}  Qc6 {[%clk 0:00:34]} 30. Re3 {[%clk 0:00:26]}  gxh4 {[%clk 0:00:32]} 31. Qf4 {[%clk 0:00:26]}  g5 {[%clk 0:00:24]} 32. Qf5+ {[%clk 0:00:20]}  Kg7 {[%clk 0:00:24]} 33. Kg2 {[%clk 0:00:18]}  Rd3 {[%clk 0:00:17]} 34. Rxd3 {[%clk 0:00:13]}  cxd3 {[%clk 0:00:18]} 35. Qxd3 {[%clk 0:00:13]}  Qxc3 {[%clk 0:00:18]} 36. Qf5 {[%clk 0:00:13]}  Qc5 {[%clk 0:00:16]} 37. Qe4 {[%clk 0:00:12]}  a5 {[%clk 0:00:15]} 38. Ne1 {[%clk 0:00:05]}  b5 {[%clk 0:00:15]} 39. Nc2 {[%clk 0:00:05]}  h3+ {[%clk 0:00:11]} 40. Kxh3 {[%clk 0:00:03]}  Qxf2 {[%clk 0:00:11]} 41. Ne3 {[%clk 0:00:04]}  b4 {[%clk 0:00:06]} 42. Nf5+ {[%clk 0:00:03]}  Kg6 {[%clk 0:00:02]} 43. Ng3+ {[%clk 0:00:03]}  Kg7 {[%clk 0:00:02]} 44. Nf5+ {[%clk 0:00:02]}  Kg6 {[%clk 0:00:02]} 45. Nh4+ {[%clk 0:00:01]}  Kg7 {[%clk 0:00:02]} 46. Nf5+ {[%clk 0:00:02]} 1/2-1/2


[Site "https://www.chess.com"]

[Event "Titled Tuesday Blitz July 25 Late 2023"]
[White "whiteglovethief"]
[Black "Santos Latasa, Jaime"]
[BlackFideId "2293307"]
[WhiteElo "2489"]
[BlackElo "3002"]
[Result "0-1"]
[Round "1"]
[TimeControl "180+2"]
[Date "2023.07.25"]
[WhiteClock "0:00:32"]
[BlackClock "0:01:32"]
[Board "21"]

1. d4 {[%clk 0:02:53]}  Nf6 {[%clk 0:02:59]} 2. c4 {[%clk 0:02:52]}  g6 {[%clk 0:03:00]} 3. Nc3 {[%clk 0:02:51]}  c5 {[%clk 0:02:59]} 4. d5 {[%clk 0:02:51]}  d6 {[%clk 0:02:59]} 5. Nf3 {[%clk 0:02:50]}  Bg7 {[%clk 0:03:00]} 6. e4 {[%clk 0:02:50]}  e6 {[%clk 0:02:59]} 7. Be2 {[%clk 0:02:47]}  O-O {[%clk 0:02:59]} 8. O-O {[%clk 0:02:47]}  Na6 {[%clk 0:02:58]} 9. Re1 {[%clk 0:02:38]}  Nc7 {[%clk 0:02:57]} 10. h3 {[%clk 0:02:38]}  h6 {[%clk 0:02:55]} 11. a3 {[%clk 0:02:34]}  e5 {[%clk 0:02:53]} 12. b4 {[%clk 0:02:29]}  b6 {[%clk 0:02:53]} 13. bxc5 {[%clk 0:02:28]}  bxc5 {[%clk 0:02:54]} 14. Rb1 {[%clk 0:02:28]}  Nh7 {[%clk 0:02:48]} 15. Qa4 {[%clk 0:02:24]}  Bd7 {[%clk 0:02:30]} 16. Qa5 {[%clk 0:02:23]}  f5 {[%clk 0:02:29]} 17. Rb7 {[%clk 0:02:18]}  Rc8 {[%clk 0:02:28]} 18. Qxa7 {[%clk 0:02:16]}  Nf6 {[%clk 0:02:25]} 19. Qb6 {[%clk 0:01:55]}  Nfe8 {[%clk 0:02:22]} 20. Nb5 {[%clk 0:01:46]}  fxe4 {[%clk 0:02:03]} 21. Nd2 {[%clk 0:01:39]}  e3 {[%clk 0:01:54]} 22. fxe3 {[%clk 0:01:37]}  Bxh3 {[%clk 0:01:53]} 23. Ne4 {[%clk 0:01:30]}  Qh4 {[%clk 0:01:51]} 24. Bd2 {[%clk 0:01:17]}  Bxg2 {[%clk 0:01:35]} 25. Kxg2 {[%clk 0:01:12]}  Qxe4+ {[%clk 0:01:35]} 26. Kg1 {[%clk 0:01:11]}  Qh4 {[%clk 0:01:34]} 27. e4 {[%clk 0:00:51]}  Qg3+ {[%clk 0:01:33]} 28. Kh1 {[%clk 0:00:46]}  Rf2 {[%clk 0:01:33]} 29. Nxc7 {[%clk 0:00:32]}  Qh2# {[%clk 0:01:32]} 0-1


[Site "https://www.chess.com"]

[Event "Titled Tuesday Blitz July 25 Late 2023"]
[White "Rohde, Michael"]
[Black "Sargsyan, Shant"]
[WhiteFideId "2000172"]
[BlackFideId "13306766"]
[WhiteElo "2485"]
[BlackElo "2990"]
[Result "0-1"]
[Round "1"]
[TimeControl "180+2"]
[Date "2023.07.25"]
[WhiteClock "0:00:00"]
[BlackClock "0:01:27"]
[Board "23"]

1. Nf3 {[%clk 0:02:58]}  g6 {[%clk 0:02:59]} 2. e4 {[%clk 0:02:56]}  Bg7 {[%clk 0:03:00]} 3. d4 {[%clk 0:02:55]}  d6 {[%clk 0:03:00]} 4. Nc3 {[%clk 0:02:51]}  a6 {[%clk 0:03:00]} 5. Bc4 {[%clk 0:02:44]}  b5 {[%clk 0:02:53]} 6. Bb3 {[%clk 0:02:44]}  Bb7 {[%clk 0:02:50]} 7. O-O {[%clk 0:02:12]}  e6 {[%clk 0:02:46]} 8. e5 {[%clk 0:01:58]}  d5 {[%clk 0:02:34]} 9. a4 {[%clk 0:01:52]}  c6 {[%clk 0:02:32]} 10. Bg5 {[%clk 0:01:45]}  Ne7 {[%clk 0:02:30]} 11. Qd2 {[%clk 0:01:45]}  h6 {[%clk 0:02:30]} 12. Bf4 {[%clk 0:01:40]}  g5 {[%clk 0:02:30]} 13. Be3 {[%clk 0:01:36]}  Nf5 {[%clk 0:02:29]} 14. Ne2 {[%clk 0:01:33]}  Nd7 {[%clk 0:02:22]} 15. c3 {[%clk 0:01:32]}  c5 {[%clk 0:02:17]} 16. dxc5 {[%clk 0:01:26]}  Nxe3 {[%clk 0:02:15]} 17. Qxe3 {[%clk 0:01:24]}  Qc7 {[%clk 0:02:15]} 18. Ned4 {[%clk 0:01:06]}  Nxc5 {[%clk 0:02:06]} 19. Bc2 {[%clk 0:01:02]}  bxa4 {[%clk 0:02:02]} 20. Rfe1 {[%clk 0:00:57]}  Rb8 {[%clk 0:01:56]} 21. h4 {[%clk 0:00:55]}  g4 {[%clk 0:01:55]} 22. Nh2 {[%clk 0:00:54]}  h5 {[%clk 0:01:55]} 23. Bxa4+ {[%clk 0:00:46]}  Nxa4 {[%clk 0:01:53]} 24. Rxa4 {[%clk 0:00:45]}  Bh6 {[%clk 0:01:51]} 25. Qe2 {[%clk 0:00:42]}  Bc8 {[%clk 0:01:45]} 26. Nf1 {[%clk 0:00:39]}  Bf8 {[%clk 0:01:43]} 27. Ng3 {[%clk 0:00:35]}  Be7 {[%clk 0:01:43]} 28. Ngf5 {[%clk 0:00:19]}  exf5 {[%clk 0:01:42]} 29. e6 {[%clk 0:00:19]}  f6 {[%clk 0:01:32]} 30. Nxf5 {[%clk 0:00:16]}  Qe5 {[%clk 0:01:33]} 31. Qxe5 {[%clk 0:00:05]}  fxe5 {[%clk 0:01:34]} 32. Rxe5 {[%clk 0:00:04]}  Rb6 {[%clk 0:01:33]} 33. Rf4 {[%clk 0:00:00]}  Rh7 {[%clk 0:01:27]} 0-1


[Site "https://www.chess.com"]

[Event "Titled Tuesday Blitz July 25 Late 2023"]
[White "He, Anthony"]
[Black "Cruz Mendez, Jean Marco"]
[WhiteFideId "2088215"]
[BlackFideId "3526402"]
[WhiteElo "2986"]
[BlackElo "2483"]
[Result "1-0"]
[Round "1"]
[TimeControl "180+2"]
[Date "2023.07.25"]
[WhiteClock "0:00:13"]
[BlackClock "0:00:00"]
[Board "24"]

1. d4 {[%clk 0:03:00]}  Nf6 {[%clk 0:02:50]} 2. Nc3 {[%clk 0:03:00]}  d5 {[%clk 0:02:47]} 3. Bf4 {[%clk 0:02:59]}  a6 {[%clk 0:02:44]} 4. e3 {[%clk 0:02:59]}  c5 {[%clk 0:02:40]} 5. dxc5 {[%clk 0:02:56]}  Nc6 {[%clk 0:02:39]} 6. Nf3 {[%clk 0:02:56]}  e6 {[%clk 0:02:37]} 7. Bd3 {[%clk 0:02:41]}  Bxc5 {[%clk 0:02:37]} 8. O-O {[%clk 0:02:42]}  O-O {[%clk 0:02:36]} 9. e4 {[%clk 0:02:42]}  d4 {[%clk 0:02:26]} 10. Ne2 {[%clk 0:02:41]}  Nd7 {[%clk 0:02:05]} 11. e5 {[%clk 0:02:31]}  Qc7 {[%clk 0:02:01]} 12. Ng3 {[%clk 0:02:30]}  Ndxe5 {[%clk 0:01:47]} 13. Nxe5 {[%clk 0:02:30]}  Nxe5 {[%clk 0:01:45]} 14. Re1 {[%clk 0:02:30]}  Bd6 {[%clk 0:01:39]} 15. Bxh7+ {[%clk 0:01:48]}  Kxh7 {[%clk 0:01:32]} 16. Qh5+ {[%clk 0:01:49]}  Kg8 {[%clk 0:01:32]} 17. Bxe5 {[%clk 0:01:49]}  Bxe5 {[%clk 0:01:32]} 18. Qxe5 {[%clk 0:01:47]}  Qxe5 {[%clk 0:01:25]} 19. Rxe5 {[%clk 0:01:48]}  f6 {[%clk 0:01:22]} 20. Rc5 {[%clk 0:01:48]}  e5 {[%clk 0:01:22]} 21. c3 {[%clk 0:01:46]}  dxc3 {[%clk 0:01:19]} 22. Rxc3 {[%clk 0:01:47]}  Bd7 {[%clk 0:01:15]} 23. Rc7 {[%clk 0:01:46]}  Bc6 {[%clk 0:01:12]} 24. Rd1 {[%clk 0:01:42]}  Rf7 {[%clk 0:01:10]} 25. Rxf7 {[%clk 0:01:41]}  Kxf7 {[%clk 0:01:10]} 26. h4 {[%clk 0:01:42]}  Ke6 {[%clk 0:01:03]} 27. h5 {[%clk 0:01:41]}  Rc8 {[%clk 0:00:56]} 28. b3 {[%clk 0:01:32]}  Bd5 {[%clk 0:00:53]} 29. Rd2 {[%clk 0:01:32]}  Bc6 {[%clk 0:00:40]} 30. f3 {[%clk 0:01:31]}  f5 {[%clk 0:00:38]} 31. Rd3 {[%clk 0:01:13]}  Rh8 {[%clk 0:00:37]} 32. h6 {[%clk 0:01:02]}  gxh6 {[%clk 0:00:30]} 33. Kf2 {[%clk 0:01:01]}  h5 {[%clk 0:00:27]} 34. Ne2 {[%clk 0:00:54]}  h4 {[%clk 0:00:22]} 35. Ng1 {[%clk 0:00:54]}  e4 {[%clk 0:00:18]} 36. fxe4 {[%clk 0:00:50]}  fxe4 {[%clk 0:00:17]} 37. Re3 {[%clk 0:00:49]}  Kf5 {[%clk 0:00:15]} 38. Nh3 {[%clk 0:00:46]}  Rd8 {[%clk 0:00:16]} 39. Ke1 {[%clk 0:00:46]}  Bb5 {[%clk 0:00:16]} 40. Nf2 {[%clk 0:00:45]}  Bd3 {[%clk 0:00:13]} 41. Rh3 {[%clk 0:00:44]}  Kg5 {[%clk 0:00:09]} 42. a3 {[%clk 0:00:42]}  Bb1 {[%clk 0:00:07]} 43. b4 {[%clk 0:00:43]}  Re8 {[%clk 0:00:05]} 44. Ke2 {[%clk 0:00:42]}  e3 {[%clk 0:00:03]} 45. Rxe3 {[%clk 0:00:26]}  Rxe3+ {[%clk 0:00:03]} 46. Kxe3 {[%clk 0:00:27]}  Bf5 {[%clk 0:00:02]} 47. Nd1 {[%clk 0:00:27]}  Bd7 {[%clk 0:00:03]} 48. Nc3 {[%clk 0:00:13]}  Bc6 {[%clk 0:00:00]} 49. Kf2 {[%clk 0:00:13]} 1-0


[Site "https://www.chess.com"]

[Event "Titled Tuesday Blitz July 25 Late 2023"]
[White "Alboredo, Julia"]
[Black "Xiong, Jeffery"]
[WhiteFideId "2124807"]
[BlackFideId "2047640"]
[WhiteElo "2483"]
[BlackElo "2977"]
[Result "0-1"]
[Round "1"]
[TimeControl "180+2"]
[Date "2023.07.25"]
[WhiteClock "0:00:08"]
[BlackClock "0:01:28"]
[Board "25"]

1. e4 {[%clk 0:02:58]}  c5 {[%clk 0:02:58]} 2. Nf3 {[%clk 0:02:57]}  d6 {[%clk 0:02:59]} 3. Nc3 {[%clk 0:02:57]}  Nf6 {[%clk 0:02:58]} 4. e5 {[%clk 0:02:57]}  dxe5 {[%clk 0:02:58]} 5. Nxe5 {[%clk 0:02:58]}  a6 {[%clk 0:02:59]} 6. g3 {[%clk 0:02:57]}  b5 {[%clk 0:02:34]} 7. Bg2 {[%clk 0:02:55]}  Ra7 {[%clk 0:02:34]} 8. O-O {[%clk 0:02:44]}  Bb7 {[%clk 0:02:35]} 9. Bxb7 {[%clk 0:02:42]}  Rxb7 {[%clk 0:02:36]} 10. Qf3 {[%clk 0:02:41]}  Qc8 {[%clk 0:02:35]} 11. a4 {[%clk 0:02:29]}  e6 {[%clk 0:02:28]} 12. axb5 {[%clk 0:02:25]}  axb5 {[%clk 0:02:29]} 13. d3 {[%clk 0:02:14]}  Be7 {[%clk 0:02:27]} 14. Bf4 {[%clk 0:02:11]}  O-O {[%clk 0:02:27]} 15. Rfe1 {[%clk 0:02:11]}  Nfd7 {[%clk 0:02:21]} 16. Ra8 {[%clk 0:01:57]}  Nxe5 {[%clk 0:02:15]} 17. Bxe5 {[%clk 0:01:54]}  Qd7 {[%clk 0:02:15]} 18. Qg4 {[%clk 0:01:37]}  g6 {[%clk 0:02:15]} 19. Qf4 {[%clk 0:01:13]}  Nc6 {[%clk 0:02:13]} 20. Rxf8+ {[%clk 0:01:13]}  Kxf8 {[%clk 0:02:07]} 21. Qh6+ {[%clk 0:01:09]}  Ke8 {[%clk 0:02:07]} 22. Qxh7 {[%clk 0:01:05]}  Nxe5 {[%clk 0:02:07]} 23. Qh8+ {[%clk 0:01:01]}  Bf8 {[%clk 0:02:07]} 24. Qxe5 {[%clk 0:01:02]}  Qd4 {[%clk 0:02:02]} 25. Qxd4 {[%clk 0:00:51]}  cxd4 {[%clk 0:02:03]} 26. Ne4 {[%clk 0:00:51]}  Rc7 {[%clk 0:02:01]} 27. Re2 {[%clk 0:00:46]}  Be7 {[%clk 0:02:00]} 28. f4 {[%clk 0:00:42]}  Ra7 {[%clk 0:01:59]} 29. Re1 {[%clk 0:00:42]}  Ra2 {[%clk 0:01:59]} 30. Rb1 {[%clk 0:00:40]}  Kd7 {[%clk 0:01:59]} 31. Kf2 {[%clk 0:00:40]}  Kc6 {[%clk 0:01:59]} 32. Ke2 {[%clk 0:00:37]}  Kd5 {[%clk 0:02:00]} 33. Kd2 {[%clk 0:00:37]}  Bb4+ {[%clk 0:02:00]} 34. c3 {[%clk 0:00:36]}  dxc3+ {[%clk 0:01:59]} 35. Nxc3+ {[%clk 0:00:36]}  Kc6 {[%clk 0:01:59]} 36. Kc2 {[%clk 0:00:32]}  Ra8 {[%clk 0:01:53]} 37. h4 {[%clk 0:00:32]}  Bc5 {[%clk 0:01:52]} 38. Ne4 {[%clk 0:00:30]}  Bd4 {[%clk 0:01:52]} 39. Rh1 {[%clk 0:00:30]}  Ra2 {[%clk 0:01:52]} 40. Rb1 {[%clk 0:00:29]}  Ra8 {[%clk 0:01:53]} 41. Kb3 {[%clk 0:00:29]}  Kd5 {[%clk 0:01:53]} 42. Nc3+ {[%clk 0:00:28]}  Kc6 {[%clk 0:01:52]} 43. Rh1 {[%clk 0:00:27]}  e5 {[%clk 0:01:50]} 44. fxe5 {[%clk 0:00:27]}  Bxe5 {[%clk 0:01:51]} 45. g4 {[%clk 0:00:27]}  Rh8 {[%clk 0:01:49]} 46. h5 {[%clk 0:00:27]}  f5 {[%clk 0:01:50]} 47. gxf5 {[%clk 0:00:25]}  Rxh5 {[%clk 0:01:50]} 48. Re1 {[%clk 0:00:15]}  Rxf5 {[%clk 0:01:50]} 49. Ne4 {[%clk 0:00:15]}  Rf3 {[%clk 0:01:44]} 50. Rc1+ {[%clk 0:00:15]}  Kb6 {[%clk 0:01:43]} 51. Kc2 {[%clk 0:00:13]}  Rh3 {[%clk 0:01:43]} 52. Rg1 {[%clk 0:00:13]}  Rh2+ {[%clk 0:01:43]} 53. Kd1 {[%clk 0:00:13]}  Rxb2 {[%clk 0:01:43]} 54. Rxg6+ {[%clk 0:00:13]}  Ka5 {[%clk 0:01:43]} 55. Re6 {[%clk 0:00:14]}  Bd4 {[%clk 0:01:43]} 56. Nd6 {[%clk 0:00:14]}  Kb4 {[%clk 0:01:34]} 57. Re8 {[%clk 0:00:14]}  Kc3 {[%clk 0:01:34]} 58. Rc8+ {[%clk 0:00:14]}  Kxd3 {[%clk 0:01:34]} 59. Nxb5 {[%clk 0:00:13]}  Rxb5 {[%clk 0:01:34]} 60. Rc1 {[%clk 0:00:08]}  Rh5 {[%clk 0:01:28]} 0-1


[Site "https://www.chess.com"]

[Event "Titled Tuesday Blitz July 25 Late 2023"]
[White "Papayan, Oleg"]
[Black "Matlakov, Maxim"]
[WhiteFideId "4193911"]
[BlackFideId "4168003"]
[WhiteElo "2479"]
[BlackElo "2973"]
[Result "0-1"]
[Round "1"]
[TimeControl "180+2"]
[Date "2023.07.25"]
[WhiteClock "0:00:00"]
[BlackClock "0:00:47"]
[Board "29"]

1. e4 {[%clk 0:03:00]}  c6 {[%clk 0:02:59]} 2. Nc3 {[%clk 0:03:00]}  d5 {[%clk 0:02:59]} 3. Nf3 {[%clk 0:03:01]}  dxe4 {[%clk 0:02:57]} 4. Nxe4 {[%clk 0:03:01]}  Nf6 {[%clk 0:02:58]} 5. Qe2 {[%clk 0:03:00]}  Nxe4 {[%clk 0:02:57]} 6. Qxe4 {[%clk 0:03:01]}  Qa5 {[%clk 0:02:58]} 7. b4 {[%clk 0:03:01]}  Qf5 {[%clk 0:02:56]} 8. Qe3 {[%clk 0:02:59]}  Qe6 {[%clk 0:02:43]} 9. Bb2 {[%clk 0:02:54]}  Qxe3+ {[%clk 0:02:43]} 10. fxe3 {[%clk 0:02:48]}  f6 {[%clk 0:02:43]} 11. d4 {[%clk 0:02:42]}  Bf5 {[%clk 0:02:35]} 12. O-O-O {[%clk 0:02:33]}  e6 {[%clk 0:02:33]} 13. a3 {[%clk 0:02:12]}  Nd7 {[%clk 0:02:32]} 14. Bd3 {[%clk 0:02:11]}  a5 {[%clk 0:02:27]} 15. Bxf5 {[%clk 0:02:10]}  exf5 {[%clk 0:02:26]} 16. bxa5 {[%clk 0:01:22]}  Rxa5 {[%clk 0:02:24]} 17. Rd3 {[%clk 0:01:23]}  Bd6 {[%clk 0:02:20]} 18. c4 {[%clk 0:01:19]}  Kf7 {[%clk 0:02:19]} 19. c5 {[%clk 0:01:17]}  Bc7 {[%clk 0:02:17]} 20. Kc2 {[%clk 0:01:11]}  Rha8 {[%clk 0:02:12]} 21. Nd2 {[%clk 0:01:09]}  Ra4 {[%clk 0:02:07]} 22. Rb3 {[%clk 0:01:07]}  b5 {[%clk 0:02:04]} 23. cxb6 {[%clk 0:01:08]}  Nxb6 {[%clk 0:02:04]} 24. Rc1 {[%clk 0:01:03]}  Nd5 {[%clk 0:02:03]} 25. Kd3 {[%clk 0:00:59]}  Re8 {[%clk 0:01:59]} 26. Rxc6 {[%clk 0:00:53]}  Rxe3+ {[%clk 0:01:58]} 27. Kc2 {[%clk 0:00:54]}  Bxh2 {[%clk 0:01:56]} 28. Rc5 {[%clk 0:00:42]}  Re2 {[%clk 0:01:32]} 29. Rxd5 {[%clk 0:00:39]}  Rxg2 {[%clk 0:01:31]} 30. Rxf5 {[%clk 0:00:30]}  Rc4+ {[%clk 0:01:26]} 31. Rc3 {[%clk 0:00:27]}  Rxd4 {[%clk 0:01:25]} 32. Rc7+ {[%clk 0:00:22]}  Bxc7 {[%clk 0:01:25]} 33. Bxd4 {[%clk 0:00:23]}  Kg6 {[%clk 0:01:25]} 34. Rf3 {[%clk 0:00:20]}  h5 {[%clk 0:01:23]} 35. a4 {[%clk 0:00:20]}  h4 {[%clk 0:01:23]} 36. Bc3 {[%clk 0:00:10]}  Kh5 {[%clk 0:01:14]} 37. a5 {[%clk 0:00:10]}  Kg4 {[%clk 0:01:14]} 38. Rf1 {[%clk 0:00:09]}  h3 {[%clk 0:01:09]} 39. a6 {[%clk 0:00:09]}  Bb6 {[%clk 0:01:08]} 40. Kd3 {[%clk 0:00:05]}  h2 {[%clk 0:01:07]} 41. Rh1 {[%clk 0:00:02]}  Rg3+ {[%clk 0:01:04]} 42. Kc4 {[%clk 0:00:02]}  Kh3 {[%clk 0:01:04]} 43. Bd4 {[%clk 0:00:02]}  Bxd4 {[%clk 0:01:01]} 44. Kxd4 {[%clk 0:00:03]}  Ra3 {[%clk 0:01:00]} 45. Nf1 {[%clk 0:00:02]}  Kg2 {[%clk 0:00:57]} 46. Rxh2+ {[%clk 0:00:02]}  Kxf1 {[%clk 0:00:57]} 47. Rh7 {[%clk 0:00:03]}  g5 {[%clk 0:00:55]} 48. a7 {[%clk 0:00:03]}  Kg2 {[%clk 0:00:53]} 49. Ke4 {[%clk 0:00:03]}  Ra5 {[%clk 0:00:52]} 50. Rf7 {[%clk 0:00:03]}  Kg3 {[%clk 0:00:51]} 51. Rxf6 {[%clk 0:00:03]}  Rxa7 {[%clk 0:00:51]} 52. Kf5 {[%clk 0:00:03]}  g4 {[%clk 0:00:51]} 53. Rb6 {[%clk 0:00:03]}  Rf7+ {[%clk 0:00:49]} 54. Ke4 {[%clk 0:00:02]}  Kh3 {[%clk 0:00:49]} 55. Rh6+ {[%clk 0:00:02]}  Kg2 {[%clk 0:00:50]} 56. Ke3 {[%clk 0:00:02]}  g3 {[%clk 0:00:49]} 57. Rg6 {[%clk 0:00:02]}  Kh2 {[%clk 0:00:48]} 58. Rh6+ {[%clk 0:00:02]}  Kg1 {[%clk 0:00:47]} 59. Ra6 {[%clk 0:00:02]}  g2 {[%clk 0:00:47]} 60. Ra1+ {[%clk 0:00:00]}  Kh2 {[%clk 0:00:47]} 0-1


[Site "https://www.chess.com"]

[Event "Titled Tuesday Blitz July 25 Late 2023"]
[White "Ibarra Jerez, Jose Carlos"]
[Black "Gulamali, Kazim"]
[WhiteFideId "2226332"]
[BlackFideId "2024764"]
[WhiteElo "2912"]
[BlackElo "2470"]
[Result "1-0"]
[Round "1"]
[TimeControl "180+2"]
[Date "2023.07.25"]
[WhiteClock "0:00:17"]
[BlackClock "0:00:09"]
[Board "34"]

1. e4 {[%clk 0:02:57]}  e5 {[%clk 0:02:58]} 2. Nf3 {[%clk 0:02:58]}  Nc6 {[%clk 0:02:59]} 3. Bb5 {[%clk 0:02:58]}  a6 {[%clk 0:02:59]} 4. Bxc6 {[%clk 0:02:58]}  dxc6 {[%clk 0:02:59]} 5. O-O {[%clk 0:02:59]}  f6 {[%clk 0:02:58]} 6. d4 {[%clk 0:02:56]}  exd4 {[%clk 0:02:59]} 7. Nxd4 {[%clk 0:02:57]}  c5 {[%clk 0:02:59]} 8. Nb3 {[%clk 0:02:56]}  Qxd1 {[%clk 0:02:59]} 9. Rxd1 {[%clk 0:02:56]}  b6 {[%clk 0:02:59]} 10. Bf4 {[%clk 0:02:54]}  Ra7 {[%clk 0:02:51]} 11. Nc3 {[%clk 0:02:54]}  Be6 {[%clk 0:02:51]} 12. Nd5 {[%clk 0:02:48]}  Bxd5 {[%clk 0:02:51]} 13. Rxd5 {[%clk 0:02:48]}  Ne7 {[%clk 0:02:50]} 14. Rd2 {[%clk 0:02:47]}  Ng6 {[%clk 0:02:46]} 15. Bg3 {[%clk 0:02:47]}  h5 {[%clk 0:02:42]} 16. Rad1 {[%clk 0:02:39]}  Be7 {[%clk 0:02:42]} 17. h4 {[%clk 0:02:32]}  Ne5 {[%clk 0:02:36]} 18. Bxe5 {[%clk 0:02:17]}  fxe5 {[%clk 0:02:34]} 19. Rd7 {[%clk 0:02:08]}  Rh6 {[%clk 0:02:32]} 20. R7d5 {[%clk 0:02:03]}  Rd6 {[%clk 0:02:07]} 21. g3 {[%clk 0:02:00]}  Ra8 {[%clk 0:01:27]} 22. Nc1 {[%clk 0:01:54]}  Rad8 {[%clk 0:01:23]} 23. Rxd6 {[%clk 0:01:49]}  Rxd6 {[%clk 0:01:17]} 24. Rxd6 {[%clk 0:01:33]}  cxd6 {[%clk 0:01:18]} 25. Ne2 {[%clk 0:01:33]}  Kd7 {[%clk 0:01:05]} 26. Nc3 {[%clk 0:01:33]}  b5 {[%clk 0:00:56]} 27. Kg2 {[%clk 0:01:31]}  Ke6 {[%clk 0:00:54]} 28. Nd5 {[%clk 0:01:30]}  Bd8 {[%clk 0:00:55]} 29. f4 {[%clk 0:01:27]}  g6 {[%clk 0:00:53]} 30. Kf3 {[%clk 0:01:27]}  exf4 {[%clk 0:00:47]} 31. Nxf4+ {[%clk 0:01:20]}  Kf6 {[%clk 0:00:47]} 32. b3 {[%clk 0:01:18]}  c4 {[%clk 0:00:37]} 33. bxc4 {[%clk 0:01:12]}  bxc4 {[%clk 0:00:38]} 34. c3 {[%clk 0:00:54]}  Ba5 {[%clk 0:00:37]} 35. Ke3 {[%clk 0:00:53]}  g5 {[%clk 0:00:29]} 36. Nd5+ {[%clk 0:00:37]}  Kg6 {[%clk 0:00:29]} 37. Kd4 {[%clk 0:00:33]}  gxh4 {[%clk 0:00:29]} 38. gxh4 {[%clk 0:00:31]}  Bd8 {[%clk 0:00:30]} 39. Nf4+ {[%clk 0:00:30]}  Kh6 {[%clk 0:00:30]} 40. Ng2 {[%clk 0:00:30]}  Bf6+ {[%clk 0:00:24]} 41. Kxc4 {[%clk 0:00:25]}  Kg6 {[%clk 0:00:24]} 42. Kd3 {[%clk 0:00:21]}  Kf7 {[%clk 0:00:24]} 43. Nf4 {[%clk 0:00:19]}  Bxh4 {[%clk 0:00:23]} 44. Nxh5 {[%clk 0:00:20]}  Ke6 {[%clk 0:00:23]} 45. Nf4+ {[%clk 0:00:20]}  Kd7 {[%clk 0:00:24]} 46. Kc4 {[%clk 0:00:19]}  Bf6 {[%clk 0:00:23]} 47. Ne2 {[%clk 0:00:18]}  Kc6 {[%clk 0:00:19]} 48. Nd4+ {[%clk 0:00:18]}  Kd7 {[%clk 0:00:18]} 49. Kd5 {[%clk 0:00:19]}  Be5 {[%clk 0:00:18]} 50. c4 {[%clk 0:00:19]}  Bf6 {[%clk 0:00:19]} 51. Nf5 {[%clk 0:00:18]}  Be5 {[%clk 0:00:12]} 52. c5 {[%clk 0:00:18]}  Bf4 {[%clk 0:00:09]} 53. cxd6 {[%clk 0:00:17]} 1-0


[Site "https://www.chess.com"]